bitfinex/quotes_BTCUSD_20250326
["timestamp","ask_amount","ask_price","bid_price","bid_amount"]
[1743027961548,0.04214493,87041.0,87040.0,0.04724545]
[1743027961762,0.04214493,87041.0,87040.0,0.24139268]
[1743027962282,0.04214493,87041.0,87040.0,0.22990468]
[1743027962705,0.04214493,87041.0,87040.0,0.24139268]
[1743027962706,0.03978966,87041.0,87040.0,0.24139268]
[1743027962911,0.02178957,87041.0,87040.0,0.00012568]
[1743027963131,0.26540884,87041.0,87040.0,0.00012568]
[1743027963304,0.02414484,87041.0,87040.0,0.00012568]
[1743027963505,0.00269427,87041.0,87040.0,0.24139268]
[1743027963711,0.00269427,87041.0,87040.0,0.26783005]
[1743027963913,0.00269427,87041.0,87040.0,0.00012568]
[1743027964074,0.24395827,87041.0,87040.0,0.00012568]
[1743027964481,0.00269427,87041.0,87040.0,0.00012568]
[1743027964899,0.23247027,87041.0,87040.0,0.00312568]
[1743027965105,0.42059683,87041.0,87040.0,0.00312568]
[1743027965280,0.46799683,87041.0,87040.0,0.00312568]
[1743027965502,0.46799683,87041.0,87040.0,0.00012568]
[1743027965700,0.88225447,87041.0,87040.0,0.00112568]
[1743027966005,0.76799683,87041.0,87040.0,0.00312568]
[1743027966201,0.76799683,87041.0,87040.0,0.00212568]
[1743027966449,0.76799683,87041.0,87040.0,0.00012568]
[1743027967277,0.78599666,87041.0,87040.0,0.00012568]
[1743027970034,0.80744573,87041.0,87040.0,0.00012568]
[1743027970558,0.92170337,87041.0,87040.0,0.00012568]
[1743027970964,1.33900337,87041.0,87040.0,6.8e-07]
[1743027971370,1.22474573,87041.0,87040.0,6.8e-07]
[1743027972216,1.35667046,87041.0,87040.0,6.8e-07]
[1743027972417,1.35902573,87041.0,87040.0,6.8e-07]
[1743027972619,1.3410259,87041.0,87040.0,6.8e-07]
[1743027973532,1.31957683,87041.0,87040.0,6.8e-07]
[1743027974698,0.76564156,87041.0,87040.0,6.8e-07]
[1743027974902,0.63779683,87041.0,87040.0,6.8e-07]
[1743027976874,0.30269427,87041.0,87040.0,6.8e-07]
[1743027977109,0.55047088,87041.0,87040.0,6.8e-07]
[1743027977307,0.56195888,87041.0,87040.0,6.8e-07]
[1743027978214,0.65579744,87041.0,87040.0,6.8e-07]
[1743027978418,0.73589744,87041.0,87040.0,6.8e-07]
[1743027986577,0.78489744,87041.0,87040.0,6.8e-07]
[1743027986977,0.81786023,87041.0,87040.0,6.8e-07]
[1743027987409,0.8393338,87041.0,87040.0,6.8e-07]
[1743027989545,0.8393338,87041.0,87040.0,0.00017008]
[1743027989947,0.95359144,87041.0,87040.0,0.00017008]
[1743027990578,0.80401574,87041.0,87040.0,0.00017008]
[1743027990694,0.94069101,87041.0,87040.0,0.00017008]
[1743027992131,1.35799101,87041.0,87040.0,0.00017008]
[1743027993025,1.3399904,87041.0,87040.0,0.00017008]
[1743027993618,1.3399904,87041.0,87040.0,8e-08]
[1743027994025,1.45424804,87041.0,87040.0,8e-08]
[1743027994373,1.45524804,87041.0,87040.0,8e-08]
[1743027995018,1.45424804,87041.0,87040.0,8e-08]
[1743027995331,1.45524804,87041.0,87040.0,8e-08]
[1743027995773,1.45724804,87041.0,87040.0,8e-08]
[1743027995976,1.47525174,87041.0,87040.0,8e-08]
[1743027997986,1.34093174,87041.0,87040.0,8e-08]
[1743027998190,1.47545174,87041.0,87040.0,8e-08]
[1743028000643,1.50837463,87041.0,87040.0,8e-08]
[1743028000798,1.55291548,87041.0,87040.0,8e-08]
[1743028001202,1.53144191,87041.0,87040.0,8e-08]
[1743028001402,0.54367027,87023.0,87022.0,0.0001694]
[1743028001603,1.26669703,87023.0,87022.0,0.00029491]
[1743028001812,1.27792203,87023.0,87022.0,0.00029491]
[1743028002050,1.33366107,87023.0,87022.0,0.00029491]
[1743028002365,1.36031402,87023.0,87022.0,0.00029491]
[1743028002961,1.34230741,87023.0,87022.0,0.00029491]
[1743028003471,1.34430741,87023.0,87022.0,0.00029491]
[1743028003673,1.45856505,87023.0,87022.0,0.00029491]
[1743028003975,1.45848505,87023.0,87022.0,0.00029491]
[1743028004227,1.46048505,87023.0,87022.0,0.00029491]
[1743028005976,1.6894429,87023.0,87022.0,9.1e-07]
[1743028006185,1.5317199,87023.0,87022.0,9.1e-07]
[1743028006720,1.5297199,87023.0,87022.0,9.1e-07]
[1743028006920,1.38578226,87023.0,87022.0,9.1e-07]
[1743028007123,1.36671423,87023.0,87022.0,9.1e-07]
[1743028007327,1.37171423,87023.0,87022.0,0.00100091]
[1743028007929,1.36071423,87023.0,87022.0,9.1e-07]
[1743028008135,1.36571423,87023.0,87022.0,9.1e-07]
[1743028008350,1.36971423,87023.0,87022.0,9.1e-07]
[1743028008531,1.48397187,87023.0,87022.0,9.1e-07]
[1743028012822,1.46596505,87023.0,87022.0,9.1e-07]
[1743028013228,1.46596505,87023.0,87022.0,0.00017031]
[1743028013624,1.46630385,87023.0,87022.0,0.00017031]
[1743028013828,1.35204621,87023.0,87022.0,0.00017031]
[1743028015268,1.35204621,87023.0,87022.0,3.1e-07]
[1743028015990,1.37505424,87023.0,87022.0,3.1e-07]
[1743028016212,1.37005424,87023.0,87022.0,3.1e-07]
[1743028016786,1.37005424,87023.0,87012.0,0.0001694]
[1743028016787,0.54369527,87014.0,87012.0,0.0001694]
[1743028017128,0.71896784,87014.0,87013.0,0.00029508]
[1743028017625,0.73697625,87014.0,87013.0,0.00029508]
[1743028017802,0.79271529,87014.0,87013.0,0.00029508]
[1743028017985,0.79471529,87014.0,87013.0,0.00029508]
[1743028020067,0.79671529,87014.0,87013.0,0.00029508]
[1743028020542,0.54369727,87013.0,87012.0,4.8e-07]
[1743028020725,0.6935204,87013.0,87012.0,4.155e-05]
[1743028021381,1.1108204,87013.0,87012.0,4.155e-05]
[1743028021584,1.11239037,87013.0,87012.0,4.155e-05]
[1743028023381,1.11639037,87013.0,87012.0,4.155e-05]
[1743028024022,1.16549037,87013.0,87012.0,4.155e-05]
[1743028024193,1.17049037,87013.0,87012.0,4.155e-05]
[1743028024378,1.20338692,87013.0,87012.0,4.155e-05]
[1743028024635,1.31764456,87013.0,87012.0,4.155e-05]
[1743028024995,1.31564456,87013.0,87012.0,4.155e-05]
[1743028025204,1.31364456,87013.0,87012.0,4.155e-05]
[1743028025618,0.54373427,87000.0,86995.0,0.0001694]
[1743028025828,0.77487999,87000.0,86999.0,0.00061388]
[1743028026464,0.79444295,87000.0,86999.0,0.00061388]
[1743028026816,0.85018199,87000.0,86999.0,0.00061388]
[1743028027234,0.86819265,87000.0,86999.0,0.00061388]
[1743028027451,0.87019265,87000.0,86999.0,0.00061388]
[1743028027657,0.85062969,87000.0,86999.0,0.00061388]
[1743028027815,0.85162969,87000.0,86999.0,0.00061388]
[1743028029999,0.86020948,87000.0,86999.0,0.00061388]
[1743028030198,1.27750948,87000.0,86999.0,0.00061388]
[1743028030606,1.39176712,87000.0,86999.0,0.00061388]
[1743028030799,1.25481185,87000.0,86999.0,0.00061388]
[1743028031007,1.13432969,87000.0,86999.0,0.00061388]
[1743028032536,1.13432969,87000.0,86999.0,0.12431388]
[1743028032948,1.11631903,87000.0,86999.0,0.12431388]
[1743028033286,1.11631903,87000.0,86999.0,0.00061388]
[1743028033484,1.23057667,87000.0,86999.0,0.00061388]
[1743028035827,1.24858655,87000.0,86999.0,0.00061388]
[1743028036165,0.71702891,87000.0,86999.0,0.00061388]
[1743028043047,0.69901903,87000.0,86999.0,0.00061388]
[1743028047500,0.71702885,87000.0,86999.0,0.00061388]
[1743028050089,0.6827279,87000.0,86999.0,0.00061388]
[1743028052939,0.66471808,87000.0,86999.0,0.00061388]
[1743028053336,0.77897572,87000.0,86999.0,0.00061388]
[1743028055940,0.79698594,87000.0,86999.0,0.00061388]
[1743028057523,0.79694168,87000.0,86999.0,0.00061388]
[1743028058629,0.68268404,87000.0,86999.0,0.00061388]
[1743028062076,0.71707433,87000.0,86999.0,0.00061388]
[1743028062712,0.07919387,87000.0,86999.0,0.12951388]
[1743028062923,0.39910837,87000.0,86999.0,0.00061388]
[1743028063128,0.4875248,87000.0,86999.0,0.00061388]
[1743028063350,0.39910837,87000.0,86999.0,0.00061388]
[1743028063551,0.39710837,87000.0,86999.0,0.00061388]
[1743028064140,0.39710837,87000.0,86999.0,0.00261388]
[1743028064497,0.36271808,87000.0,86999.0,0.00261388]
[1743028064702,0.36171808,87000.0,86999.0,0.00261388]
[1743028064900,0.46915129,87000.0,86999.0,0.00261388]
[1743028065106,0.46915129,87000.0,86999.0,0.00361388]
[1743028067665,0.36171808,87000.0,86999.0,0.00361388]
[1743028068081,0.37972676,87000.0,86999.0,0.00361388]
[1743028069204,0.67972676,87000.0,86999.0,0.00361388]
[1743028070718,0.67972676,87000.0,86999.0,0.00161388]
[1743028071132,0.67972676,87000.0,86999.0,0.00261388]
[1743028071793,0.7939844,87000.0,86999.0,0.00161388]
[1743028071992,0.67972676,87000.0,86999.0,0.00161388]
[1743028073051,0.66171808,87000.0,86999.0,0.00161388]
[1743028073265,0.66171808,87000.0,86999.0,0.00261388]
[1743028075089,0.66205708,87000.0,86999.0,0.00261388]
[1743028076013,0.68006638,87000.0,86999.0,0.00261388]
[1743028076205,0.79432402,87000.0,86999.0,0.00261388]
[1743028078270,0.79432402,87000.0,86999.0,0.00161388]
[1743028079937,0.79432402,87000.0,86999.0,0.00061388]
[1743028080099,0.79432402,87000.0,86999.0,0.00161388]
[1743028080336,0.79432402,87000.0,86999.0,0.00261388]
[1743028080567,0.79432402,87000.0,86999.0,0.00161388]
[1743028080741,0.79432402,87000.0,86999.0,0.00061388]
[1743028080947,0.79832402,87000.0,86999.0,0.00061388]
[1743028083041,1.21562402,87000.0,86999.0,0.00061388]
[1743028085786,1.21562402,87000.0,86995.0,2.8e-07]
[1743028085787,0.24374427,86996.0,86995.0,2.8e-07]
[1743028085983,0.54378327,86982.0,86981.0,0.002]
[1743028086214,0.54381927,86969.0,86966.0,0.0001696]
[1743028086424,0.64241358,86969.0,86966.0,0.0001696]
[1743028086636,0.76548219,86969.0,86966.0,0.0001696]
[1743028087052,0.67266264,86969.0,86966.0,0.0001696]
[1743028087502,0.68444229,86969.0,86966.0,0.0001696]
[1743028087706,0.68444229,86969.0,86968.0,0.0011695]
[1743028087846,0.68488648,86969.0,86968.0,0.0021695]
[1743028088643,0.68488648,86969.0,86968.0,0.2321385]
[1743028088644,0.43461151,86969.0,86968.0,0.2321385]
[1743028088850,0.02423755,86969.0,86968.0,0.34324721]
[1743028089283,0.02423755,86969.0,86968.0,0.2922365]
[1743028090323,0.02081244,86969.0,86968.0,0.2922365]
[1743028090514,0.02081244,86969.0,86968.0,0.2912365]
[1743028090724,0.02081244,86969.0,86968.0,0.2902365]
[1743028090931,0.36087075,86969.0,86968.0,0.0487695]
[1743028091237,0.34937275,86969.0,86968.0,0.0487695]
[1743028091770,0.11940675,86969.0,86968.0,0.0487695]
[1743028091988,0.34937275,86969.0,86968.0,0.0487695]
[1743028092512,0.37076724,86969.0,86968.0,0.0487695]
[1743028092914,0.4785099,86969.0,86968.0,0.0001695]
[1743028093690,0.4785099,86969.0,86968.0,0.0031695]
[1743028093891,0.4785099,86969.0,86968.0,0.0001695]
[1743028093892,0.7785099,86969.0,86968.0,0.0001695]
[1743028094352,0.7785099,86969.0,86968.0,0.0021695]
[1743028095069,0.7785099,86969.0,86968.0,0.0001695]
[1743028095703,0.8241099,86969.0,86968.0,0.0001695]
[1743028095918,0.84212484,86969.0,86968.0,0.0001695]
[1743028096056,0.6822672,86969.0,86968.0,0.0001695]
[1743028096880,0.6707692,86969.0,86968.0,0.0001695]
[1743028097111,0.6822672,86969.0,86968.0,0.0001695]
[1743028097532,0.4408032,86969.0,86968.0,0.2301385]
[1743028097692,0.6707692,86969.0,86968.0,0.0001695]
[1743028098050,0.6822672,86969.0,86968.0,0.0001695]
[1743028098879,0.6707692,86969.0,86968.0,0.0001695]
[1743028099306,0.6822672,86969.0,86968.0,0.0001695]
[1743028099687,0.79652484,86969.0,86968.0,0.0001695]
[1743028099823,0.79652484,86969.0,86968.0,0.0011695]
[1743028100024,0.6822672,86969.0,86968.0,0.0011695]
[1743028101648,0.6822672,86969.0,86968.0,0.0001695]
[1743028102950,0.66425226,86969.0,86968.0,0.0011695]
[1743028103551,1.08155226,86969.0,86968.0,0.0011695]
[1743028103802,1.1958099,86969.0,86968.0,0.0011695]
[1743028105077,1.08155226,86969.0,86968.0,0.0011695]
[1743028105887,1.09956716,86969.0,86968.0,0.0011695]
[1743028106622,1.09956716,86969.0,86968.0,0.0001695]
[1743028108948,1.07817267,86969.0,86968.0,0.0001695]
[1743028114578,1.09959077,86969.0,86968.0,0.0001695]
[1743028114774,1.21384841,86969.0,86968.0,0.0001695]
[1743028116297,1.34204841,86969.0,86968.0,0.0001695]
[1743028117047,1.32403351,86969.0,86968.0,0.0001695]
[1743028119204,1.34762575,86969.0,86968.0,0.0001695]
[1743028120180,0.01385427,86962.0,86961.0,1e-07]
[1743028120379,0.71996495,86962.0,86961.0,1e-07]
[1743028120946,0.74138305,86962.0,86961.0,1e-07]
[1743028121147,0.74138305,86962.0,86953.0,6e-07]
[1743028121148,0.541506,86954.0,86953.0,6e-07]
[1743028121501,0.82318734,86954.0,86953.0,6e-07]
[1743028121621,0.93744498,86954.0,86953.0,6e-07]
[1743028121825,0.96399537,86954.0,86953.0,6e-07]
[1743028122073,0.9854186,86954.0,86953.0,6e-07]
[1743028122437,0.9864186,86954.0,86953.0,6e-07]
[1743028122975,0.96839932,86954.0,86953.0,6e-07]
[1743028123360,0.67440168,86954.0,86953.0,6e-07]
[1743028123564,0.66587057,86954.0,86953.0,6e-07]
[1743028124582,0.66687057,86954.0,86953.0,6e-07]
[1743028126139,0.68488893,86954.0,86953.0,6e-07]
[1743028126340,0.82600201,86954.0,86953.0,6e-07]
[1743028126495,0.81736893,86954.0,86953.0,6e-07]
[1743028126920,0.93162657,86954.0,86953.0,6e-07]
[1743028127930,0.81736893,86954.0,86953.0,6e-07]
[1743028128667,0.68488893,86954.0,86953.0,6e-07]
[1743028130740,0.44338293,86954.0,86953.0,6e-07]
[1743028130930,0.67338893,86954.0,86953.0,6e-07]
[1743028131689,0.68488893,86954.0,86953.0,6e-07]
[1743028131893,0.79914657,86954.0,86953.0,6e-07]
[1743028133015,0.77772334,86954.0,86953.0,6e-07]
[1743028133217,0.6634657,86954.0,86953.0,6e-07]
[1743028134234,0.6638047,86954.0,86953.0,6e-07]
[1743028134891,0.64578634,86954.0,86953.0,6e-07]
[1743028135045,0.64478634,86954.0,86953.0,6e-07]
[1743028135236,0.64378634,86954.0,86953.0,6e-07]
[1743028136694,0.75804398,86954.0,86953.0,6e-07]
[1743028137882,0.66180428,86954.0,86953.0,6e-07]
[1743028140842,0.35030428,86954.0,86953.0,6e-07]
[1743028141262,0.36180428,86954.0,86953.0,6e-07]
[1743028143028,0.36180428,86954.0,86953.0,0.0010006]
[1743028146191,0.66180428,86954.0,86953.0,0.0010006]
[1743028146389,0.77606192,86954.0,86953.0,0.0010006]
[1743028146599,0.85316192,86954.0,86953.0,0.0010006]
[1743028147376,0.98532192,86954.0,86953.0,0.0010006]
[1743028147576,0.79396428,86954.0,86953.0,0.0010006]
[1743028147783,0.65030428,86954.0,86953.0,0.0010006]
[1743028148039,0.66280428,86954.0,86953.0,6e-07]
[1743028148384,0.66380428,86954.0,86953.0,6e-07]
[1743028149339,0.66180428,86954.0,86953.0,6e-07]
[1743028149539,0.77606192,86954.0,86953.0,6e-07]
[1743028150534,0.66180428,86954.0,86953.0,6e-07]
[1743028150729,0.65030428,86954.0,86953.0,6e-07]
[1743028151139,0.42029828,86954.0,86953.0,6e-07]
[1743028151512,0.65030428,86954.0,86953.0,6e-07]
[1743028151744,0.66180428,86954.0,86953.0,6e-07]
[1743028152492,0.77606192,86954.0,86953.0,6e-07]
[1743028152910,0.66180428,86954.0,86953.0,6e-07]
[1743028158471,0.42029828,86954.0,86953.0,0.2300096]
[1743028158887,0.42029828,86954.0,86953.0,6e-07]
[1743028159327,0.66180428,86954.0,86953.0,6e-07]
[1743028165596,0.35030428,86954.0,86953.0,6e-07]
[1743028165770,0.12029828,86954.0,86953.0,6e-07]
[1743028165967,0.12029828,86954.0,86953.0,0.2300096]
[1743028166880,0.12029828,86954.0,86953.0,0.2415096]
[1743028169627,0.01835694,86954.0,86953.0,0.2415096]
[1743028170975,0.01835694,86954.0,86953.0,0.2300096]
[1743028171180,0.01835694,86954.0,86953.0,0.0020006]
[1743028171508,0.01835694,86954.0,86953.0,0.2415096]
[1743028171912,0.01835694,86954.0,86953.0,0.2435096]
[1743028176507,0.02071221,86954.0,86953.0,0.2435096]
[1743028176957,0.04693253,86954.0,86953.0,0.2435096]
[1743028177146,0.02071221,86954.0,86953.0,0.2435096]
[1743028179748,0.01835694,86954.0,86953.0,0.2435096]
[1743028179967,0.01835694,86954.0,86953.0,0.3727096]
[1743028181008,0.01835694,86954.0,86953.0,0.2435096]
[1743028181157,0.02071221,86954.0,86953.0,0.2435096]
[1743028181582,0.01835694,86954.0,86953.0,0.2445096]
[1743028181906,0.01835694,86954.0,86953.0,0.3269096]
[1743028182114,0.01835694,86954.0,86953.0,0.3754096]
[1743028183171,0.01835694,86954.0,86953.0,0.3734096]
[1743028184551,0.01835694,86954.0,86953.0,0.5088096]
[1743028190330,0.01835694,86954.0,86953.0,0.62306724]
[1743028190537,9.4e-07,86954.0,86953.0,0.52335045]
[1743028190745,0.00044419,86969.0,86968.0,0.38220785]
[1743028190972,0.00044419,86969.0,86968.0,0.498827]
[1743028191145,0.00044419,86969.0,86968.0,0.61154475]
[1743028191712,0.00044419,86969.0,86968.0,0.61054475]
[1743028192110,0.00044419,86969.0,86968.0,0.51236785]
[1743028192687,0.00044419,86969.0,86968.0,0.51736785]
[1743028193740,0.00044419,86969.0,86968.0,0.65505567]
[1743028194646,0.00044419,86969.0,86968.0,0.63551482]
[1743028194846,0.00044419,86969.0,86968.0,0.66105567]
[1743028195246,0.00044419,86969.0,86968.0,0.76431331]
[1743028195406,0.00044419,86969.0,86968.0,0.77031331]
[1743028195606,0.00044419,86969.0,86968.0,0.77631331]
[1743028199941,0.00044419,86969.0,86968.0,0.41663803]
[1743028200146,0.00044419,86969.0,86968.0,0.47111803]
[1743028201114,0.00044419,86969.0,86968.0,0.32449718]
[1743028201265,0.00044419,86969.0,86968.0,0.40793718]
[1743028202324,0.00044419,86969.0,86968.0,0.39593718]
[1743028202616,0.00044419,86969.0,86968.0,0.51619482]
[1743028202991,0.00044419,86969.0,86968.0,0.40193718]
[1743028203591,0.00044419,86969.0,86968.0,0.40793718]
[1743028204318,0.00044419,86969.0,86968.0,0.27589718]
[1743028204745,0.00044419,86969.0,86968.0,0.40777718]
[1743028204955,0.00044419,86969.0,86968.0,0.27589718]
[1743028205105,0.00044419,86969.0,86968.0,0.40790668]
[1743028205322,0.00078319,86969.0,86968.0,0.42981565]
[1743028205474,0.00078319,86969.0,86968.0,0.29797565]
[1743028205887,0.00078319,86969.0,86968.0,0.42977565]
[1743028206592,0.00078319,86969.0,86968.0,0.29797565]
[1743028206795,0.00078319,86969.0,86968.0,0.40782668]
[1743028207177,0.00078319,86969.0,86968.0,0.42236753]
[1743028207379,0.00078319,86969.0,86968.0,0.50226753]
[1743028207832,0.00078319,86969.0,86968.0,0.37050753]
[1743028208138,0.00078319,86969.0,86968.0,0.50222753]
[1743028208346,0.00078319,86969.0,86968.0,0.61648517]
[1743028209355,0.00078319,86969.0,86968.0,0.66508517]
[1743028210462,0.00078319,86969.0,86968.0,1.26220517]
[1743028212502,1.9e-07,86969.0,86968.0,1.37910754]
[1743028213498,1.9e-07,86969.0,86968.0,1.36446281]
[1743028214286,1.9e-07,86969.0,86968.0,1.37046281]
[1743028214885,1.9e-07,86969.0,86968.0,1.37646281]
[1743028215094,1.9e-07,86969.0,86968.0,1.79296281]
[1743028216015,1.9e-07,86969.0,86968.0,1.79560754]
[1743028216646,0.000339,86981.0,86980.0,0.33357385]
[1743028216647,1.9e-07,86981.0,86980.0,0.33357385]
[1743028216845,1.9e-07,86981.0,86980.0,0.44783149]
[1743028217264,2.2e-07,86988.0,86987.0,0.25595485]
[1743028217554,0.000339,87000.0,86999.0,0.241381]
[1743028217787,0.000339,87000.0,86999.0,0.313797]
[1743028218606,0.000339,87000.0,86999.0,0.33735441]
[1743028218784,0.000339,87000.0,86999.0,0.33748742]
[1743028219002,0.000339,87000.0,86999.0,0.34889776]
[1743028219602,0.000339,87000.0,86999.0,0.35389776]
[1743028220090,0.000339,87000.0,86999.0,0.35989776]
[1743028221484,0.000339,87000.0,86999.0,0.36844071]
[1743028221717,0.00024153,87000.0,86999.0,0.36844071]
[1743028225853,0.00024153,87000.0,86999.0,0.42726471]
[1743028226200,0.00024153,87000.0,86999.0,0.38371401]
[1743028227647,0.01824825,87000.0,86999.0,0.38371401]
[1743028228231,0.01824825,87000.0,86999.0,0.37871401]
[1743028228433,0.01824825,87000.0,86999.0,0.38371401]
[1743028228649,0.01824825,87000.0,86999.0,0.37771401]
[1743028228990,0.01824825,87000.0,86999.0,0.38371401]
[1743028230893,0.01824825,87000.0,86999.0,0.47840869]
[1743028233162,0.01824825,87000.0,86999.0,0.49294954]
[1743028233723,0.01824825,87000.0,86999.0,0.48794954]
[1743028234135,2.5e-07,87000.0,86999.0,0.60820718]
[1743028234337,0.0003388,87012.0,87011.0,0.25588785]
[1743028234538,0.0003388,87012.0,87011.0,0.36093354]
[1743028235723,0.0003388,87012.0,87011.0,0.36693354]
[1743028236036,6e-07,87014.0,87013.0,0.25588285]
[1743028236236,6e-07,87014.0,87013.0,0.37014049]
[1743028237365,6e-07,87014.0,87013.0,0.37614049]
[1743028237547,6e-07,87014.0,87013.0,0.49039813]
[1743028237971,6e-07,87014.0,87013.0,0.49639813]
[1743028238517,6e-07,87014.0,87013.0,0.38214049]
[1743028239124,6e-07,87014.0,87013.0,0.37614049]
[1743028239266,6e-07,87014.0,87013.0,0.37014049]
[1743028239462,6e-07,87014.0,87013.0,0.37614049]
[1743028239779,6e-07,87014.0,87013.0,0.38214049]
[1743028241716,6e-07,87014.0,87013.0,0.97898049]
[1743028246158,6e-07,87014.0,87013.0,1.10966049]
[1743028250395,6e-07,87014.0,87013.0,0.97898049]
[1743028250597,6e-07,87014.0,87013.0,0.99560285]
[1743028250809,6e-07,87014.0,87013.0,0.850182]
[1743028251012,0.0818006,87014.0,87013.0,0.981102]
[1743028251214,0.08415587,87014.0,87013.0,0.60884]
[1743028251397,0.13245587,87014.0,87013.0,0.83869]
[1743028251596,0.15045941,87014.0,87013.0,0.850182]
[1743028251767,0.15045941,87014.0,87013.0,0.844182]
[1743028251968,0.15045941,87014.0,87013.0,0.838182]
[1743028252190,0.15045941,87014.0,87013.0,0.841182]
[1743028252414,0.15045941,87014.0,87013.0,0.844182]
[1743028252828,0.13245587,87014.0,87013.0,0.844182]
[1743028255500,0.13245587,87014.0,87013.0,0.87340642]
[1743028255701,0.13245587,87014.0,87013.0,0.844182]
[1743028256895,0.13245587,87014.0,87013.0,1.094182]
[1743028261018,0.13245587,87014.0,87013.0,0.497342]
[1743028263313,0.13245587,87014.0,87013.0,0.48585]
[1743028263512,0.13245587,87014.0,87013.0,0.497342]
[1743028265843,0.48742098,87014.0,87013.0,0.256]
[1743028266399,0.78742098,87014.0,87013.0,0.256]
[1743028267051,0.78742098,87014.0,87013.0,0.253]
[1743028267289,0.78742098,87014.0,87013.0,0.25]
[1743028267757,0.78742098,87014.0,87013.0,0.253]
[1743028268289,0.78742098,87014.0,87013.0,0.25]
[1743028268986,0.78742098,87014.0,87013.0,0.253]
[1743028269161,0.90167862,87014.0,87013.0,0.25]
[1743028269773,0.78742098,87014.0,87013.0,0.25]
[1743028270656,1.20472098,87014.0,87013.0,0.25]
[1743028273420,1.18671691,87014.0,87013.0,0.25]
[1743028277192,1.20472414,87014.0,87013.0,0.25]
[1743028278065,1.20472414,87014.0,87013.0,0.5]
[1743028278473,1.31898178,87014.0,87013.0,0.5]
[1743028278869,1.20472414,87014.0,87013.0,0.5]
[1743028283088,1.18671691,87014.0,87013.0,0.5]
[1743028285917,1.20472406,87014.0,87013.0,0.5]
[1743028287033,1.33524406,87014.0,87013.0,0.5]
[1743028293061,1.31723691,87014.0,87013.0,0.5]
[1743028295930,1.3352439,87014.0,87013.0,0.5]
[1743028296235,1.2047239,87014.0,87013.0,0.5]
[1743028296441,1.3352439,87014.0,87013.0,0.5]
[1743028301665,1.36815798,87014.0,87013.0,0.5]
[1743028302486,1.48241562,87014.0,87013.0,0.5]
[1743028304198,1.36815798,87014.0,87013.0,0.5]
[1743028307860,1.35015099,87014.0,87013.0,0.5]
[1743028309670,1.36815794,87014.0,87013.0,0.5]
[1743028313132,1.35015099,87014.0,87013.0,0.5]
[1743028313333,1.22005099,87014.0,87013.0,0.5]
[1743028314097,1.05661691,87014.0,87013.0,0.5]
[1743028314309,0.62546964,87014.0,87013.0,0.5]
[1743028314578,0.33931691,87014.0,87013.0,0.5]
[1743028314739,0.63931691,87014.0,87013.0,0.5]
[1743028314951,0.33931691,87014.0,87013.0,0.5]
[1743028315832,0.35732257,87014.0,87013.0,0.5]
[1743028322974,0.33931691,87014.0,87013.0,0.5]
[1743028323514,0.32782491,87014.0,87013.0,0.5]
[1743028324179,0.09797691,87014.0,87013.0,0.5]
[1743028324358,0.32782491,87014.0,87013.0,0.5]
[1743028324538,0.09797691,87014.0,87013.0,0.5]
[1743028324896,0.32782491,87014.0,87013.0,0.5]
[1743028325098,0.39797691,87014.0,87013.0,0.5]
[1743028325392,0.62782491,87014.0,87013.0,0.6296]
[1743028325944,0.6458305,87014.0,87013.0,0.6296]
[1743028326963,0.4159825,87014.0,87013.0,0.6296]
[1743028327855,0.6458305,87014.0,87013.0,0.6296]
[1743028328569,0.4159825,87014.0,87013.0,0.6296]
[1743028328978,0.6458305,87014.0,87013.0,0.6296]
[1743028329178,0.4159825,87014.0,87013.0,0.85945]
[1743028329629,0.4159825,87014.0,87013.0,0.6296]
[1743028330181,0.4159825,87014.0,87013.0,0.85945]
[1743028330515,0.6458305,87014.0,87013.0,0.6296]
[1743028330715,0.4159825,87014.0,87013.0,0.6296]
[1743028331610,0.4159825,87014.0,87013.0,0.85945]
[1743028332404,0.32036146,87014.0,87013.0,0.870942]
[1743028332736,0.32036146,87014.0,87013.0,0.85945]
[1743028332941,0.32036146,87014.0,87013.0,0.6296]
[1743028333159,0.53220387,87014.0,87013.0,0.6296]
[1743028333542,0.30235587,87014.0,87013.0,0.6296]
[1743028333746,0.53220387,87014.0,87013.0,0.6296]
[1743028334048,0.54369587,87014.0,87013.0,0.6296]
[1743028334786,0.53220387,87014.0,87013.0,0.6296]
[1743028335349,0.30235587,87014.0,87013.0,0.6296]
[1743028335551,0.00235587,87014.0,87013.0,0.5478]
[1743028335907,0.23220387,87014.0,87013.0,0.5478]
[1743028336191,0.25020932,87014.0,87013.0,0.5478]
[1743028336398,0.26170132,87014.0,87013.0,0.5478]
[1743028336628,0.56170132,87014.0,87013.0,0.5478]
[1743028337431,0.55020932,87014.0,87013.0,0.5]
[1743028338144,0.56170132,87014.0,87013.0,0.5]
[1743028340497,0.65732236,87014.0,87013.0,0.5]
[1743028341243,0.64583036,87014.0,87013.0,0.5]
[1743028341645,0.65732236,87014.0,87013.0,0.5]
[1743028342427,0.63931691,87014.0,87013.0,0.5]
[1743028345764,0.6573224,87014.0,87013.0,0.5]
[1743028353006,0.63931691,87014.0,87013.0,0.5]
[1743028355966,0.65732261,87014.0,87013.0,0.5]
[1743028362152,0.35732261,87014.0,87013.0,0.5]
[1743028362391,0.33931691,87014.0,87013.0,0.5]
[1743028365455,0.357323,87014.0,87013.0,0.5]
[1743028373119,0.33931691,87014.0,87013.0,0.5]
[1743028373586,0.09797691,87014.0,87013.0,0.57300374]
[1743028373846,0.33931691,87014.0,87013.0,0.5]
[1743028375893,0.35732216,87014.0,87013.0,0.5]
[1743028382814,0.33931691,87014.0,87013.0,0.5]
[1743028384390,0.09797691,87014.0,87013.0,0.5]
[1743028385136,0.32782491,87014.0,87013.0,0.5]
[1743028385642,0.09797691,87014.0,87013.0,0.5]
[1743028385846,0.09797691,87014.0,87013.0,0.72985]
[1743028386143,0.00235587,87014.0,87013.0,0.98369964]
[1743028386368,6e-07,87014.0,87013.0,0.98369964]
[1743028386519,6e-07,87014.0,87013.0,1.00971206]
[1743028387098,6e-07,87014.0,87013.0,0.89545442]
[1743028387585,6e-07,87014.0,87013.0,0.89845442]
[1743028387949,6e-07,87014.0,87013.0,0.90145442]
[1743028388946,6e-07,87014.0,87013.0,0.88998285]
[1743028389162,6e-07,87014.0,87013.0,0.91262066]
[1743028390007,6e-07,87014.0,87013.0,0.95629184]
[1743028390313,6e-07,87014.0,87013.0,0.95329184]
[1743028390672,6e-07,87014.0,87013.0,0.95429184]
[1743028391656,6e-07,87014.0,87013.0,0.95729184]
[1743028392717,6e-07,87014.0,87013.0,0.96129184]
[1743028393217,6e-07,87014.0,87013.0,0.95729184]
[1743028393579,6e-07,87014.0,87013.0,0.95629184]
[1743028394126,6e-07,87014.0,87013.0,0.96229184]
[1743028394891,6e-07,87014.0,87013.0,1.07654948]
[1743028395774,8.3e-07,87018.0,87017.0,0.241332]
[1743028395982,8.3e-07,87018.0,87017.0,0.61608813]